[Event "*** Titled Tuesday Blitz"]
[Site "Chess.com"]
[Date "2020.04.28"]
[Round "2"]
[White "Alopekos"]
[Black "ZAbdumalik"]
[Result "1-0"]
[WhiteElo "2386"]
[BlackElo "2644"]
[TimeControl "180+1"]
[EndTime "10:17:27 PDT"]
[Termination "Alopekos won by resignation"]

1. e4 {[%clk 0:03:00.9]} 1... e5 {[%clk 0:02:59.6]} 2. Nf3 {[%clk 0:03:00.6]}
2... Nc6 {[%clk 0:03:00]} 3. Bb5 {[%clk 0:03:01.2]} 3... a6 {[%clk 0:03:00]} 4.
Ba4 {[%clk 0:03:01.4]} 4... Nf6 {[%clk 0:03:00.1]} 5. O-O {[%clk 0:03:01.5]}
5... Be7 {[%clk 0:03:00.3]} 6. Re1 {[%clk 0:03:00.5]} 6... b5 {[%clk 0:03:00.4]}
7. Bb3 {[%clk 0:03:01.1]} 7... O-O {[%clk 0:03:00.7]} 8. a4 {[%clk 0:03:01.7]}
8... Bb7 {[%clk 0:03:00.2]} 9. axb5 {[%clk 0:03:01.7]} 9... axb5 {[%clk
0:03:00.1]} 10. Rxa8 {[%clk 0:03:02.6]} 10... Qxa8 {[%clk 0:02:59.5]} 11. Nc3
{[%clk 0:03:02.9]} 11... Na5 {[%clk 0:02:52.2]} 12. Ba2 {[%clk 0:02:52.2]} 12...
d6 {[%clk 0:02:43.7]} 13. d3 {[%clk 0:02:10]} 13... b4 {[%clk 0:02:40.7]} 14.
Ne2 {[%clk 0:02:07.7]} 14... c5 {[%clk 0:02:39]} 15. Ng3 {[%clk 0:02:05.7]}
15... b3 {[%clk 0:02:36.3]} 16. Bxb3 {[%clk 0:01:52.4]} 16... Nxb3 {[%clk
0:02:36.3]} 17. cxb3 {[%clk 0:01:53.3]} 17... Re8 {[%clk 0:02:34.3]} 18. Nf5
{[%clk 0:01:44.8]} 18... Bf8 {[%clk 0:02:34.5]} 19. Bg5 {[%clk 0:01:40.5]} 19...
Nd7 {[%clk 0:02:34.7]} 20. Nd2 {[%clk 0:01:38]} 20... d5 {[%clk 0:02:23.4]} 21.
Qg4 {[%clk 0:01:30.7]} 21... Re6 {[%clk 0:02:05.3]} 22. Be7 {[%clk 0:01:07.8]}
22... Rg6 {[%clk 0:01:54.8]} 23. Qh4 {[%clk 0:00:57]} 23... dxe4 {[%clk
0:01:50.1]} 24. Bxf8 {[%clk 0:00:52.1]} 24... Nxf8 {[%clk 0:01:43.3]} 25. dxe4
{[%clk 0:00:24.7]} 25... Kh8 {[%clk 0:01:41.6]} 26. Qe7 {[%clk 0:00:12.3]} 26...
Ne6 {[%clk 0:01:35.7]} 27. Nd6 {[%clk 0:00:04]} 27... Bc6 {[%clk 0:01:25.9]} 28.
Nxf7+ {[%clk 0:00:03.7]} 28... Kg8 {[%clk 0:01:26.2]} 29. Nxe5 {[%clk
0:00:04.6]} 29... Rf6 {[%clk 0:01:26]} 30. Nxc6 {[%clk 0:00:03.2]} 30... Qxc6
{[%clk 0:01:25.8]} 31. Nc4 {[%clk 0:00:03.3]} 31... Nd4 {[%clk 0:01:24]} 32.
Qd8+ {[%clk 0:00:02.8]} 32... Rf8 {[%clk 0:01:23.5]} 33. Qd5+ {[%clk 0:00:02.9]}
33... Qxd5 {[%clk 0:01:23.9]} 34. exd5 {[%clk 0:00:03.8]} 34... Nxb3 {[%clk
0:01:24]} 35. d6 {[%clk 0:00:04.2]} 35... Nd4 {[%clk 0:01:24.2]} 36. d7 {[%clk
0:00:04.3]} 36... Kf7 {[%clk 0:01:23.8]} 37. Nd6+ {[%clk 0:00:03.5]} 37... Kg6
{[%clk 0:01:20.7]} 38. Re8 {[%clk 0:00:04.4]} 38... Rf6 {[%clk 0:01:09.3]} 39.
d8=Q {[%clk 0:00:04.8]} 39... Nc6 {[%clk 0:01:07.2]} 40. Qd7 {[%clk 0:00:04.5]}
40... Nd4 {[%clk 0:01:03.3]} 41. Qg4+ {[%clk 0:00:04.2]} 41... Kh6 {[%clk
0:01:03.4]} 42. Nf5+ {[%clk 0:00:04.5]} 1-0

[Event "*** Titled Tuesday Blitz"]
[Site "Chess.com"]
[Date "2020.04.28"]
[Round "2"]
[White "johnathan113"]
[Black "lifeissofun"]
[Result "0-1"]
[WhiteElo "2633"]
[BlackElo "2360"]
[TimeControl "180+1"]
[EndTime "10:17:29 PDT"]
[Termination "lifeissofun won on time"]

1. c4 {[%clk 0:03:00.9]} 1... Nf6 {[%clk 0:02:59.6]} 2. g3 {[%clk 0:03:00.8]}
2... e6 {[%clk 0:03:00.2]} 3. Nf3 {[%clk 0:03:00.9]} 3... d5 {[%clk 0:03:01.1]}
4. b3 {[%clk 0:03:01.4]} 4... dxc4 {[%clk 0:03:00.8]} 5. bxc4 {[%clk 0:03:00.9]}
5... Be7 {[%clk 0:03:01.4]} 6. Bg2 {[%clk 0:03:01.2]} 6... O-O {[%clk
0:03:02.3]} 7. O-O {[%clk 0:03:01.9]} 7... Nbd7 {[%clk 0:03:00.9]} 8. Bb2 {[%clk
0:02:59]} 8... c5 {[%clk 0:03:00.8]} 9. Nc3 {[%clk 0:02:56.6]} 9... a6 {[%clk
0:02:56]} 10. e4 {[%clk 0:02:33.5]} 10... Qc7 {[%clk 0:02:50.6]} 11. Qe2 {[%clk
0:02:32]} 11... e5 {[%clk 0:02:42.4]} 12. Nh4 {[%clk 0:02:15.2]} 12... Nb8
{[%clk 0:02:37.1]} 13. Nd5 {[%clk 0:01:59.5]} 13... Nxd5 {[%clk 0:02:34.5]} 14.
cxd5 {[%clk 0:01:57.8]} 14... b5 {[%clk 0:02:29]} 15. Rac1 {[%clk 0:01:52.5]}
15... Qa5 {[%clk 0:02:22]} 16. Bxe5 {[%clk 0:01:50.2]} 16... Nd7 {[%clk
0:02:16.1]} 17. Ba1 {[%clk 0:01:49.3]} 17... Bxh4 {[%clk 0:02:11.1]} 18. gxh4
{[%clk 0:01:49.2]} 18... Qxa2 {[%clk 0:02:11.2]} 19. e5 {[%clk 0:01:41.9]} 19...
Re8 {[%clk 0:02:00.6]} 20. f4 {[%clk 0:01:33.1]} 20... Ra7 {[%clk 0:01:57.9]}
21. h5 {[%clk 0:01:27.9]} 21... Bb7 {[%clk 0:01:48.4]} 22. h6 {[%clk 0:01:27.6]}
22... Bxd5 {[%clk 0:01:46.6]} 23. hxg7 {[%clk 0:00:55.3]} 23... Bc4 {[%clk
0:01:21]} 24. Qh5 {[%clk 0:00:50.5]} 24... Bd3 {[%clk 0:01:12.7]} 25. f5 {[%clk
0:00:23]} 25... Nxe5 {[%clk 0:01:03.8]} 26. Rce1 {[%clk 0:00:23.1]} 26... Rae7
{[%clk 0:00:57]} 27. f6 {[%clk 0:00:23.1]} 27... Nf3+ {[%clk 0:00:53.5]} 28.
Qxf3 {[%clk 0:00:18]} 28... Rxe1 {[%clk 0:00:53.9]} 29. Rxe1 {[%clk 0:00:08.6]}
29... Rxe1+ {[%clk 0:00:52.8]} 30. Kf2 {[%clk 0:00:09.1]} 30... Qxd2+ {[%clk
0:00:38]} 0-1

[Event "*** Titled Tuesday Blitz"]
[Site "Chess.com"]
[Date "2020.04.28"]
[Round "2"]
[White "PawnEatingZombie"]
[Black "FrogMist"]
[Result "0-1"]
[WhiteElo "2112"]
[BlackElo "2404"]
[TimeControl "180+1"]
[EndTime "10:17:30 PDT"]
[Termination "FrogMist won by checkmate"]

1. d4 {[%clk 0:03:00.9]} 1... Nf6 {[%clk 0:02:59.2]} 2. c4 {[%clk 0:03:00.8]}
2... g6 {[%clk 0:02:51.6]} 3. Nc3 {[%clk 0:02:59.6]} 3... Bg7 {[%clk 0:02:49.3]}
4. e4 {[%clk 0:02:58.7]} 4... d6 {[%clk 0:02:48.7]} 5. Be2 {[%clk 0:02:58.9]}
5... O-O {[%clk 0:02:49.2]} 6. Be3 {[%clk 0:02:58.4]} 6... e5 {[%clk 0:02:39.9]}
7. d5 {[%clk 0:02:58.1]} 7... a5 {[%clk 0:02:27.7]} 8. g4 {[%clk 0:02:57.4]}
8... Nfd7 {[%clk 0:02:26]} 9. h4 {[%clk 0:02:56.7]} 9... Na6 {[%clk 0:02:20.7]}
10. h5 {[%clk 0:02:54.7]} 10... Ndc5 {[%clk 0:02:07.1]} 11. f3 {[%clk
0:02:43.8]} 11... f5 {[%clk 0:01:47.5]} 12. hxg6 {[%clk 0:02:42.8]} 12... hxg6
{[%clk 0:00:55.8]} 13. gxf5 {[%clk 0:02:41.8]} 13... gxf5 {[%clk 0:00:49.8]} 14.
exf5 {[%clk 0:02:33.6]} 14... Bxf5 {[%clk 0:00:37.8]} 15. Nh3 {[%clk 0:02:33.1]}
15... Nb4 {[%clk 0:00:17]} 16. Kd2 {[%clk 0:02:21]} 16... c6 {[%clk 0:00:10.3]}
17. Qg1 {[%clk 0:02:10.9]} 17... Qf6 {[%clk 0:00:06.1]} 18. Qg5 {[%clk
0:01:42.4]} 18... Qf7 {[%clk 0:00:05.4]} 19. Rag1 {[%clk 0:01:36.8]} 19... cxd5
{[%clk 0:00:02]} 20. cxd5 {[%clk 0:01:36.7]} 20... Nxd5 {[%clk 0:00:01.7]} 21.
Nxd5 {[%clk 0:01:27.1]} 21... Qxd5+ {[%clk 0:00:01.8]} 22. Kc1 {[%clk
0:01:27.5]} 22... Rf7 {[%clk 0:00:02.4]} 23. Qh4 {[%clk 0:01:20.7]} 23... Rc8
{[%clk 0:00:01.8]} 24. Qh8+ {[%clk 0:00:24.2]} 24... Kxh8 {[%clk 0:00:01.6]} 25.
Ng5+ {[%clk 0:00:25.1]} 25... Kg8 {[%clk 0:00:02.3]} 26. Nxf7 {[%clk 0:00:23.5]}
26... Nb3# {[%clk 0:00:03.2]} 0-1

[Event "*** Titled Tuesday Blitz"]
[Site "Chess.com"]
[Date "2020.04.28"]
[Round "2"]
[White "swayamsm"]
[Black "aa175"]
[Result "0-1"]
[WhiteElo "2668"]
[BlackElo "2454"]
[TimeControl "180+1"]
[EndTime "10:17:31 PDT"]
[Termination "aa175 won by resignation"]

1. d4 {[%clk 0:03:00.9]} 1... Nf6 {[%clk 0:02:57.1]} 2. Nf3 {[%clk 0:02:57.9]}
2... d5 {[%clk 0:02:55.8]} 3. c4 {[%clk 0:02:54.3]} 3... g6 {[%clk 0:02:55.5]}
4. Nc3 {[%clk 0:02:50.5]} 4... Bg7 {[%clk 0:02:55]} 5. Bf4 {[%clk 0:02:42.8]}
5... O-O {[%clk 0:02:53.5]} 6. e3 {[%clk 0:02:34.5]} 6... c5 {[%clk 0:02:52.4]}
7. dxc5 {[%clk 0:02:21]} 7... Qa5 {[%clk 0:02:51.3]} 8. Rc1 {[%clk 0:02:18.7]}
8... dxc4 {[%clk 0:02:50.4]} 9. Bxc4 {[%clk 0:02:17.8]} 9... Qxc5 {[%clk
0:02:50.1]} 10. Bb3 {[%clk 0:02:16.6]} 10... Bg4 {[%clk 0:02:43.1]} 11. h3
{[%clk 0:02:05]} 11... Qh5 {[%clk 0:02:40.6]} 12. O-O {[%clk 0:01:55]} 12...
Bxf3 {[%clk 0:02:39.1]} 13. Qxf3 {[%clk 0:01:55.9]} 13... Qxf3 {[%clk 0:02:39]}
14. gxf3 {[%clk 0:01:56.8]} 14... Nc6 {[%clk 0:02:39.7]} 15. Rfd1 {[%clk
0:01:36.2]} 15... Rfd8 {[%clk 0:02:32.8]} 16. Bc7 {[%clk 0:01:26]} 16... Rxd1+
{[%clk 0:02:20]} 17. Rxd1 {[%clk 0:01:26.9]} 17... Rc8 {[%clk 0:02:19.5]} 18.
Bh2 {[%clk 0:01:23.5]} 18... Na5 {[%clk 0:02:09.8]} 19. Ba4 {[%clk 0:01:20.4]}
19... Nc4 {[%clk 0:02:07.3]} 20. Rb1 {[%clk 0:01:12.3]} 20... Nd2 {[%clk
0:02:02.4]} 21. Rd1 {[%clk 0:01:08.4]} 21... Nxf3+ {[%clk 0:02:02.4]} 22. Kg2
{[%clk 0:01:07.4]} 22... Nxh2 {[%clk 0:01:58.2]} 23. Kxh2 {[%clk 0:01:08.3]}
23... a6 {[%clk 0:01:49.6]} 24. Kg2 {[%clk 0:00:58.6]} 24... b5 {[%clk
0:01:48.9]} 25. Bb3 {[%clk 0:00:47.7]} 25... Ne8 {[%clk 0:01:48.2]} 26. Nd5
{[%clk 0:00:45.9]} 26... Kf8 {[%clk 0:01:44.8]} 27. Nb6 {[%clk 0:00:44.2]} 27...
Rc6 {[%clk 0:01:41.7]} 28. Nd7+ {[%clk 0:00:42.6]} 28... Kg8 {[%clk 0:01:41.4]}
29. Nb8 {[%clk 0:00:43.2]} 29... Rd6 {[%clk 0:01:32.7]} 30. Rxd6 {[%clk
0:00:38.7]} 30... Nxd6 {[%clk 0:01:33.6]} 31. Nxa6 {[%clk 0:00:38.2]} 31... Bxb2
{[%clk 0:01:33.7]} 32. Nc7 {[%clk 0:00:34.7]} 32... e6 {[%clk 0:01:25.2]} 33. f4
{[%clk 0:00:30.3]} 33... Kf8 {[%clk 0:01:01.7]} 34. Kf3 {[%clk 0:00:25.7]} 34...
Ke7 {[%clk 0:01:01]} 35. e4 {[%clk 0:00:26.3]} 35... Kd7 {[%clk 0:00:57]} 36.
Na6 {[%clk 0:00:26.5]} 36... Ba3 {[%clk 0:00:55.6]} 37. e5 {[%clk 0:00:20.5]}
37... Nf5 {[%clk 0:00:50.3]} 38. Ke4 {[%clk 0:00:21.1]} 38... Kc6 {[%clk
0:00:48.3]} 39. Bd1 {[%clk 0:00:12.5]} 39... Kb7 {[%clk 0:00:47.3]} 0-1

[Event "*** Titled Tuesday Blitz"]
[Site "Chess.com"]
[Date "2020.04.28"]
[Round "2"]
[White "1random"]
[Black "zivicd"]
[Result "0-1"]
[WhiteElo "2605"]
[BlackElo "2222"]
[TimeControl "180+1"]
[EndTime "10:17:31 PDT"]
[Termination "zivicd won on time"]

1. e4 {[%clk 0:03:00.9]} 1... c5 {[%clk 0:02:55.4]} 2. Nf3 {[%clk 0:02:58.5]}
2... e6 {[%clk 0:02:55]} 3. d4 {[%clk 0:02:58.6]} 3... cxd4 {[%clk 0:02:54.6]}
4. Bg5 {[%clk 0:02:59.1]} 4... Qc7 {[%clk 0:02:48.7]} 5. Nxd4 {[%clk 0:02:59.2]}
5... a6 {[%clk 0:02:47.6]} 6. Nc3 {[%clk 0:02:59.5]} 6... Nc6 {[%clk 0:02:44.8]}
7. Nxc6 {[%clk 0:02:59]} 7... bxc6 {[%clk 0:02:41]} 8. Bd3 {[%clk 0:02:59.3]}
8... d5 {[%clk 0:02:38.9]} 9. O-O {[%clk 0:02:59.4]} 9... Be7 {[%clk 0:02:29.7]}
10. Bxe7 {[%clk 0:02:41.2]} 10... Nxe7 {[%clk 0:02:29.2]} 11. Kh1 {[%clk
0:02:41.9]} 11... e5 {[%clk 0:02:26]} 12. Na4 {[%clk 0:02:22]} 12... O-O {[%clk
0:02:09.7]} 13. c4 {[%clk 0:02:05.8]} 13... d4 {[%clk 0:02:01.4]} 14. b3 {[%clk
0:01:24.5]} 14... c5 {[%clk 0:01:54]} 15. Nb2 {[%clk 0:01:22.8]} 15... Bb7
{[%clk 0:01:52.5]} 16. Qg4 {[%clk 0:01:20.9]} 16... Ng6 {[%clk 0:01:36.6]} 17.
Be2 {[%clk 0:01:06.3]} 17... Nf4 {[%clk 0:01:23.4]} 18. Bf3 {[%clk 0:01:06.1]}
18... Rad8 {[%clk 0:00:53.3]} 19. g3 {[%clk 0:00:55]} 19... Bc8 {[%clk
0:00:50.6]} 20. Qh4 {[%clk 0:00:47.2]} 20... Ng6 {[%clk 0:00:41.6]} 21. Qh5
{[%clk 0:00:31.8]} 21... f5 {[%clk 0:00:35.5]} 22. Nd3 {[%clk 0:00:25.4]} 22...
Bb7 {[%clk 0:00:14.2]} 0-1

[Event "*** Titled Tuesday Blitz"]
[Site "Chess.com"]
[Date "2020.04.28"]
[Round "2"]
[White "Superfelix"]
[Black "IMinTheWings"]
[Result "1-0"]
[WhiteElo "2457"]
[BlackElo "2219"]
[TimeControl "180+1"]
[EndTime "10:17:32 PDT"]
[Termination "Superfelix won on time"]

1. e4 {[%clk 0:03:00.9]} 1... e6 {[%clk 0:02:58.4]} 2. d4 {[%clk 0:03:00.3]}
2... d5 {[%clk 0:02:58.8]} 3. exd5 {[%clk 0:03:01.1]} 3... exd5 {[%clk
0:02:59.2]} 4. Bd3 {[%clk 0:03:01.8]} 4... Bd6 {[%clk 0:02:58.3]} 5. Nf3 {[%clk
0:03:00.4]} 5... Ne7 {[%clk 0:02:58.4]} 6. O-O {[%clk 0:03:00.3]} 6... O-O
{[%clk 0:02:57.7]} 7. Re1 {[%clk 0:03:00.2]} 7... c6 {[%clk 0:02:57.5]} 8. Nbd2
{[%clk 0:03:00]} 8... Nd7 {[%clk 0:02:56.3]} 9. Nf1 {[%clk 0:02:58.7]} 9... h6
{[%clk 0:02:56.5]} 10. Ng3 {[%clk 0:02:57.6]} 10... Nf6 {[%clk 0:02:56.7]} 11.
c3 {[%clk 0:02:56.1]} 11... Qc7 {[%clk 0:02:52.7]} 12. Ne5 {[%clk 0:02:55.8]}
12... Bxe5 {[%clk 0:02:34.9]} 13. dxe5 {[%clk 0:02:47.4]} 13... Ng4 {[%clk
0:02:34.1]} 14. e6 {[%clk 0:02:47.5]} 14... Nf6 {[%clk 0:02:15.8]} 15. exf7+
{[%clk 0:02:25.7]} 15... Rxf7 {[%clk 0:02:15.3]} 16. f3 {[%clk 0:02:24.4]} 16...
c5 {[%clk 0:02:06]} 17. Bc2 {[%clk 0:02:19.3]} 17... Nc6 {[%clk 0:02:02.1]} 18.
Bg6 {[%clk 0:02:14.3]} 18... Re7 {[%clk 0:01:59.7]} 19. Be3 {[%clk 0:02:10.5]}
19... b6 {[%clk 0:01:58.7]} 20. Bf2 {[%clk 0:02:10.2]} 20... Ne5 {[%clk
0:01:48.7]} 21. Bf5 {[%clk 0:02:06]} 21... Ba6 {[%clk 0:01:40.7]} 22. b3 {[%clk
0:01:53.2]} 22... Rae8 {[%clk 0:01:39.8]} 23. Qd2 {[%clk 0:01:50.8]} 23... Kf7
{[%clk 0:01:24.2]} 24. Rad1 {[%clk 0:01:45.4]} 24... g6 {[%clk 0:01:04.7]} 25.
Qxh6 {[%clk 0:01:39.5]} 25... gxf5 {[%clk 0:01:03.7]} 26. Nxf5 {[%clk
0:01:39.4]} 26... Rd7 {[%clk 0:01:00.7]} 27. Bg3 {[%clk 0:01:25.7]} 27... Ke6
{[%clk 0:00:11.6]} 28. Rxe5+ {[%clk 0:01:03.7]} 28... Qxe5 {[%clk 0:00:10.8]}
29. Bxe5 {[%clk 0:01:04.6]} 29... Kxe5 {[%clk 0:00:10.5]} 30. Re1+ {[%clk
0:00:56.9]} 30... Kxf5 {[%clk 0:00:10.6]} 31. g4+ {[%clk 0:00:56.8]} 31... Nxg4
{[%clk 0:00:08.1]} 32. fxg4+ {[%clk 0:00:56.5]} 32... Kxg4 {[%clk 0:00:04]} 33.
Rxe8 {[%clk 0:00:53.8]} 33... Bd3 {[%clk 0:00:02]} 34. Rg8+ {[%clk 0:00:51.3]}
34... Kf3 {[%clk 0:00:01.7]} 35. Rf8+ {[%clk 0:00:51.2]} 35... Ke2 {[%clk
0:00:01.5]} 36. Rf2+ {[%clk 0:00:46.3]} 1-0

[Event "*** Titled Tuesday Blitz"]
[Site "Chess.com"]
[Date "2020.04.28"]
[Round "2"]
[White "Warerman"]
[Black "AcsinteMatei"]
[Result "0-1"]
[WhiteElo "2454"]
[BlackElo "2265"]
[TimeControl "180+1"]
[EndTime "10:17:33 PDT"]
[Termination "AcsinteMatei won by resignation"]

1. d4 {[%clk 0:00:33.8]} 1... Nf6 {[%clk 0:02:57.8]} 2. c4 {[%clk 0:00:33.2]}
2... e6 {[%clk 0:02:56]} 3. Nc3 {[%clk 0:00:33.6]} 3... Bb4 {[%clk 0:02:55.6]}
4. e3 {[%clk 0:00:34.1]} 4... O-O {[%clk 0:02:53.6]} 5. Bd3 {[%clk 0:00:33.4]}
5... d5 {[%clk 0:02:51.8]} 6. Nf3 {[%clk 0:00:32.5]} 6... b6 {[%clk 0:02:50.5]}
7. O-O {[%clk 0:00:32.2]} 7... Ba6 {[%clk 0:02:43.4]} 8. cxd5 {[%clk 0:00:31.9]}
8... Bxd3 {[%clk 0:02:43.1]} 9. Qxd3 {[%clk 0:00:32.8]} 9... exd5 {[%clk
0:02:42.5]} 10. Rd1 {[%clk 0:00:32.7]} 10... Nbd7 {[%clk 0:02:36.5]} 11. a3
{[%clk 0:00:32.7]} 11... Bd6 {[%clk 0:02:34.8]} 12. b4 {[%clk 0:00:30.9]} 12...
a5 {[%clk 0:02:31.5]} 13. b5 {[%clk 0:00:29.7]} 13... Qe7 {[%clk 0:02:31.9]} 14.
a4 {[%clk 0:00:28.5]} 14... Bb4 {[%clk 0:02:29]} 15. Bb2 {[%clk 0:00:26.7]}
15... Qe6 {[%clk 0:02:28.5]} 16. Ne2 {[%clk 0:00:25.8]} 16... Ne4 {[%clk
0:02:26]} 17. Rac1 {[%clk 0:00:24.2]} 17... Bd6 {[%clk 0:02:21.2]} 18. Nf4
{[%clk 0:00:24]} 18... Bxf4 {[%clk 0:02:16.7]} 19. exf4 {[%clk 0:00:24]} 19...
Qd6 {[%clk 0:02:14.7]} 20. Ne5 {[%clk 0:00:23.4]} 20... f6 {[%clk 0:02:15.2]}
21. Nxd7 {[%clk 0:00:21.3]} 21... Qxd7 {[%clk 0:02:15.3]} 22. f3 {[%clk
0:00:21.5]} 22... Nd6 {[%clk 0:02:14.9]} 23. Ba3 {[%clk 0:00:19.3]} 23... Rfe8
{[%clk 0:02:12.1]} 24. Bxd6 {[%clk 0:00:18.9]} 24... Qxd6 {[%clk 0:02:12.1]} 25.
Rc6 {[%clk 0:00:19.4]} 25... Qxf4 {[%clk 0:02:09.3]} 26. Rdc1 {[%clk 0:00:18.4]}
26... Re3 {[%clk 0:02:04.4]} 27. Qd1 {[%clk 0:00:15.2]} 27... Rae8 {[%clk
0:01:42.7]} 28. Kf2 {[%clk 0:00:13.5]} 28... Qh4+ {[%clk 0:01:34.9]} 29. Kf1
{[%clk 0:00:11]} 29... Qxh2 {[%clk 0:01:29]} 30. Rxc7 {[%clk 0:00:08.5]} 30...
Qh1+ {[%clk 0:01:23.3]} 31. Kf2 {[%clk 0:00:07.6]} 31... Re2+ {[%clk 0:01:10.6]}
32. Qxe2 {[%clk 0:00:06.4]} 32... Rxe2+ {[%clk 0:01:10.6]} 33. Kxe2 {[%clk
0:00:06.1]} 33... Qxg2+ {[%clk 0:01:11.5]} 34. Ke3 {[%clk 0:00:06.8]} 34... Qg5+
{[%clk 0:01:12]} 35. Ke2 {[%clk 0:00:06.7]} 35... h5 {[%clk 0:01:12.2]} 36. Rd7
{[%clk 0:00:02.9]} 36... Qxc1 {[%clk 0:01:10.3]} 0-1

[Event "*** Titled Tuesday Blitz"]
[Site "Chess.com"]
[Date "2020.04.28"]
[Round "2"]
[White "vaps"]
[Black "Macron20hTF1"]
[Result "1-0"]
[WhiteElo "1967"]
[BlackElo "2342"]
[TimeControl "180+1"]
[EndTime "10:17:36 PDT"]
[Termination "vaps won by resignation"]

1. Nf3 {[%clk 0:03:00.9]} 1... f5 {[%clk 0:02:59.5]} 2. d4 {[%clk 0:02:57.5]}
2... Nf6 {[%clk 0:02:59.6]} 3. c4 {[%clk 0:02:56.8]} 3... g6 {[%clk 0:03:00]} 4.
g3 {[%clk 0:02:56.9]} 4... Bg7 {[%clk 0:03:00.3]} 5. Bg2 {[%clk 0:02:56.7]} 5...
O-O {[%clk 0:03:01.2]} 6. O-O {[%clk 0:02:56.4]} 6... d6 {[%clk 0:03:01.9]} 7.
Nc3 {[%clk 0:02:52.8]} 7... Nc6 {[%clk 0:03:01.9]} 8. d5 {[%clk 0:02:51.7]} 8...
Ne5 {[%clk 0:03:02.3]} 9. Nd4 {[%clk 0:02:46.1]} 9... Nxc4 {[%clk 0:02:59.2]}
10. Qb3 {[%clk 0:02:33.7]} 10... Nb6 {[%clk 0:02:56.9]} 11. Bf4 {[%clk
0:02:26.6]} 11... h6 {[%clk 0:02:55.7]} 12. h4 {[%clk 0:02:25.4]} 12... Kh7
{[%clk 0:02:53.9]} 13. Ne6 {[%clk 0:02:25]} 13... Bxe6 {[%clk 0:02:53.6]} 14.
dxe6 {[%clk 0:02:25]} 14... c6 {[%clk 0:02:53.3]} 15. a4 {[%clk 0:02:23.9]}
15... a5 {[%clk 0:02:34.8]} 16. e4 {[%clk 0:02:22.3]} 16... fxe4 {[%clk
0:02:29.9]} 17. Nxe4 {[%clk 0:02:23.2]} 17... Nxe4 {[%clk 0:02:29.4]} 18. Bxe4
{[%clk 0:02:24.1]} 18... d5 {[%clk 0:02:26.3]} 19. Bc2 {[%clk 0:01:27]} 19...
Rf6 {[%clk 0:01:57.7]} 20. Rae1 {[%clk 0:01:04]} 20... Kh8 {[%clk 0:01:36.4]}
21. Be5 {[%clk 0:00:53.9]} 21... Rf8 {[%clk 0:01:36.4]} 22. Qe3 {[%clk
0:00:43.9]} 22... Kg8 {[%clk 0:01:14.8]} 23. Bxg7 {[%clk 0:00:29.9]} 23... Kxg7
{[%clk 0:01:15.7]} 24. Qd4+ {[%clk 0:00:29.3]} 24... Rf6 {[%clk 0:01:08.4]} 25.
g4 {[%clk 0:00:25.2]} 25... Kg8 {[%clk 0:00:39.8]} 26. g5 {[%clk 0:00:22.5]}
26... hxg5 {[%clk 0:00:40.7]} 27. hxg5 {[%clk 0:00:22.2]} 27... Rf3 {[%clk
0:00:40.2]} 28. Bxg6 {[%clk 0:00:19.7]} 28... Nc4 {[%clk 0:00:40.6]} 29. Qh4
{[%clk 0:00:17.2]} 1-0

[Event "*** Titled Tuesday Blitz"]
[Site "Chess.com"]
[Date "2020.04.28"]
[Round "2"]
[White "KubaGepard"]
[Black "GMartin_Petrov"]
[Result "0-1"]
[WhiteElo "2398"]
[BlackElo "2671"]
[TimeControl "180+1"]
[EndTime "10:17:37 PDT"]
[Termination "GMartin_Petrov won by resignation"]

1. d4 {[%clk 0:03:00.9]} 1... Nf6 {[%clk 0:02:59.4]} 2. Nf3 {[%clk 0:03:00.6]}
2... e6 {[%clk 0:02:59.6]} 3. Bf4 {[%clk 0:03:00.2]} 3... d5 {[%clk 0:02:58.7]}
4. e3 {[%clk 0:03:00.2]} 4... Bd6 {[%clk 0:02:58.3]} 5. Bg3 {[%clk 0:03:00.1]}
5... O-O {[%clk 0:02:56.7]} 6. c3 {[%clk 0:02:59.1]} 6... c5 {[%clk 0:02:56.5]}
7. Nbd2 {[%clk 0:02:58.5]} 7... Nc6 {[%clk 0:02:56.1]} 8. Bd3 {[%clk 0:02:57.6]}
8... b6 {[%clk 0:02:54.9]} 9. Qe2 {[%clk 0:02:57.6]} 9... Bb7 {[%clk 0:02:54.2]}
10. Rd1 {[%clk 0:02:57.2]} 10... a5 {[%clk 0:02:53.5]} 11. e4 {[%clk 0:02:54.2]}
11... Be7 {[%clk 0:02:53.4]} 12. e5 {[%clk 0:02:52.9]} 12... Nh5 {[%clk
0:02:53.2]} 13. h4 {[%clk 0:02:50.9]} 13... Nxg3 {[%clk 0:02:46.7]} 14. fxg3
{[%clk 0:02:49.7]} 14... h6 {[%clk 0:02:44.3]} 15. g4 {[%clk 0:02:46.9]} 15...
cxd4 {[%clk 0:02:32.8]} 16. cxd4 {[%clk 0:02:36.4]} 16... Nb4 {[%clk 0:02:30.5]}
17. g5 {[%clk 0:02:34.4]} 17... Nxd3+ {[%clk 0:02:11.7]} 18. Qxd3 {[%clk
0:02:31.7]} 18... Ba6 {[%clk 0:02:12.4]} 19. Qb1 {[%clk 0:02:25.6]} 19... hxg5
{[%clk 0:02:01.5]} 20. hxg5 {[%clk 0:02:22.6]} 20... g6 {[%clk 0:02:01.8]} 21.
Nf1 {[%clk 0:01:48.9]} 21... Bxg5 {[%clk 0:01:58.3]} 22. Ng3 {[%clk 0:01:48.5]}
22... Kg7 {[%clk 0:01:20.4]} 23. Kf2 {[%clk 0:01:18.2]} 23... Rc8 {[%clk
0:01:10.4]} 24. Rh3 {[%clk 0:00:55.7]} 24... Rh8 {[%clk 0:01:03.1]} 25. Rxh8
{[%clk 0:00:53.2]} 25... Kxh8 {[%clk 0:01:02.9]} 26. Rh1+ {[%clk 0:00:51.4]}
26... Kg7 {[%clk 0:01:02.5]} 27. Rh3 {[%clk 0:00:35.2]} 27... Bf4 {[%clk
0:00:53.1]} 28. Rh4 {[%clk 0:00:20.3]} 28... Rc1 {[%clk 0:00:18.3]} 0-1